Cogmind - Beta 14 @@@ ROGUE MODE // 2025.01.04 @ 20:03:15 Player: ncryptek Result: Destroyed by SO-8YT(R) with Subdweller Machine Gun Performance ------------- Evolutions (0) 0 Regions Visited (2) 400 Robots Destroyed (25) 125 Value Destroyed (700) 700 Prototype IDs (2) 40 Alien Tech Used (0) 0 Bonus (0) 0 TOTAL SCORE: 1265 Bonus ------- None Cogmind --------- Core Integrity 0/250 Matter 240/300 Energy 100/100 System Corruption 0% Temperature Cool (0) Movement Walking (260) Ox2 Location -10/Subcaves Parts ------- > --- POWER (1) -------- (None) > --- PROPULSION (2) --- Aluminum Leg > --- UTILITY (2) ------ Large Storage Unit Power Shielding > --- WEAPON (2) ------- Small Laser > --- INVENTORY (15) --- Light Ion Engine Light Treads Aluminum Leg Light EM Pulse Cannon Peak State ------------ > --- POWER ------------ Light Ion Engine > --- PROPULSION ------- Aluminum Leg Aluminum Leg > --- UTILITY ---------- Large Storage Unit Power Shielding > --- WEAPON ----------- Small Laser Particle Gun > --- INVENTORY -------- Light Ion Engine Light Treads Light Treads EM Pulse Gun Grenade Launcher [Rating: 8] Favorites ----------- Power Light Ion Engine Engine Light Ion Engine Propulsion Light Treads Treads Light Treads Leg Aluminum Leg Utility Large Storage Unit Storage Large Storage Unit Protection Power Shielding Weapon Small Laser Energy Gun Small Laser Energy Cannon Light EM Pulse Cannon Launcher Grenade Launcher Build | -11 -10 -10 ------- Run | Yrd Mat Sub Slots Evolved . | . . . Power . | . . . Propulsion . | . . . Utility . | . . . Weapon . | . . . Parts Attached 27 | 6 18 3 Power 3 | 1 2 . Engine 3 | 1 2 . Core . | . . . Reactor . | . . . Propulsion 6 | 2 2 2 Treads 2 | . 2 . Leg 4 | 2 . 2 Wheel . | . . . Hover . | . . . Flight . | . . . Utility 3 | 1 2 . Device . | . . . Storage 2 | 1 1 . Processor . | . . . Hackware . | . . . Protection 1 | . 1 . Artifact . | . . . Weapon 15 | 2 12 1 Energy Gun 9 | 2 7 . Energy Cannon 1 | . 1 . Ballistic Gun . | . . . Ballistic Cannon . | . . . Launcher 5 | . 4 1 Special Weapon . | . . . Impact Weapon . | . . . Slashing Weapon . | . . . Piercing Weapon . | . . . Special Melee Weapon . | . . . Unidentified Prototypes . | . . . Parts Lost 10 | . 6 4 Power 2 | . 1 1 Propulsion 4 | . 2 2 Utility . | . . . Weapon 4 | . 3 1 Highest Loss Streak 4 | . 3 4 To Critical Strikes . | . . . Average Slot Usage (%) 98 | . 98 98 Engine 13 | . 13 14 Treads 20 | . 19 24 Leg 7 | . 8 2 Storage 14 | . 14 14 Protection 12 | . 12 14 Energy Gun 21 | . 22 14 Energy Cannon 5 | . 4 11 Peak Build Rating 8 | 6 8 8 Average Rating 7 | 4 7 7 On Entrance 4 | . 6 8 Naked Turns . | . . . Heaviest Build 29 | 11 29 29 Greatest Support 40 | 20 40 40 Greatest Overweight (x) 2 | . 1 2 Average Overweight (x) . | . . . Largest Inventory Capacity 15 | 8 15 15 Average Capacity 14 | 7 14 15 Most Carried 8 | 8 8 5 Average Carried 3 | 6 3 4 Final Capacity 15 | 8 15 15 Final Carried 6 | 6 5 4 Class Distribution -------------------- 100% | Mutant Dominant Class ---------------- Mutant | -10/Materials Mutant | -10/Subcaves Resources | -11 -10 -10 ----------- Run | Yrd Mat Sub Matter Collected 583 | 201 382 . Remotely . | . . . Salvage Created 714 | . 662 52 Parts 49 | . 46 3 Haulers Intercepted . | . . . Recyclers Shooed 1 | . 1 . Parts Field Recycled . | . . . Retrieved Matter . | . . . Parts Self-Destructed 9 | . . 9 Prevented . | . . . Kills | -11 -10 -10 ------- Run | Yrd Mat Sub Combat Hostiles Destroyed 22 | . 20 2 Guns 13 | . 12 1 Cannons 1 | . 1 . AOE 8 | . 7 1 Classes Destroyed 4 | . 3 1 Watcher 3 | . 3 . Swarmer 6 | . 6 . Grunt 14 | . 14 . Subdweller 2 | . . 2 Best Kill Streak 4 | . 4 2 Combat Bots Only 4 | . 4 2 Max Kills in Single Turn 2 | . 2 1 Gunslinging . | . . . Exploded 1 | . 1 1 Melee . | . . . Uniques/NPCs Destroyed . | . . . Combat | -11 -10 -10 -------- Run | Yrd Mat Sub Hostile Shots Fired 146 | . 108 38 Missed 45 | . 33 12 Damage Taken 1357 | . 827 530 Core 252 | . 170 82 Absorbed by Shields . | . . . Redirected to Shielding 36 | . 17 19 Core Remaining (%) 100 | 100 . . Volleys Fired 67 | . 63 4 Largest 2 | . 2 2 Hottest 105 | . 105 70 Shots Fired 117 | . 109 8 Gun 99 | . 95 4 Cannon 8 | . 8 . Launcher 10 | . 6 4 Special . | . . . Kinetic . | . . . Thermal 69 | . 65 4 Explosive 10 | . 6 4 Electromagnetic 38 | . 38 . Robot Hit Streak 8 | . 8 6 Robot Miss Streak 5 | . 5 1 Penetration Max . | . . . Secondary Targets 1 | . 1 . Max Gunslinging Chain 1 | . 1 . Shots Hit Robots 66 | . 60 6 Core Hits 40 | . 35 5 Critical Kills . | . . . Critical Parts Destroyed . | . . . Critical Strikes . | . . . Melee Attacks . | . . . Impact . | . . . Slashing . | . . . Piercing . | . . . Sneak Attacks . | . . . Combat Hostiles . | . . . Follow-up Attacks . | . . . Damage Inflicted 1445 | . 1236 209 Guns 741 | . 707 34 Cannons 41 | . 41 . Explosions 663 | . 488 175 Melee . | . . . Ramming . | . . . Kinetic . | . . . Thermal 553 | . 519 34 Explosive 641 | . 466 175 Electromagnetic 251 | . 251 . Impact . | . . . Slashing . | . . . Piercing . | . . . Highest Corruption . | . . . Average Corruption . | . . . Corruption Purged . | . . . Corruption Blocked . | . . . Overload Shots . | . . . Overflow Damage 10 | . 10 . Projectiles . | . . . Explosions 10 | . 10 . Melee . | . . . Knockbacks . | . . . Impact . | . . . Kinetic . | . . . Secondary . | . . . Self-Inflicted Damage . | . . . Shots . | . . . Rammed . | . . . Targets Rammed . | . . . Kicked . | . . . Crushed . | . . . Highest Temperature 493 | . 493 . Average Temperature 110 | . 110 . Received Heat Transfer 423 | . 357 66 Effects 10 | . 10 . Shutdowns 2 | . 2 . Interference 1 | . 1 . Matter Decay 2 | . 2 . Damage (minor) 1 | . 1 . Damage (major) 4 | . 4 . Siege Activations . | . . . Robots Corrupted . | . . . Combat Hostiles . | . . . Parts Fried . | . . . Impact Corruptions . | . . . Robots Melted . | . . . Combat Hostiles . | . . . Parts Melted 4 | . 3 1 Heat Transferred 1231 | . 1156 75 Parts Sabotaged . | . . . Parts Stolen . | . . . Parts Stripped . | . . . Power Chain Reactions 1 | . 1 . Alert | -11 -10 -10 ------- Run | Yrd Mat Sub Peak Influence 287 | . 287 . Initial . | . . . Average 114 | . 124 . Maximum Alert Level 1 | . 1 . Low Security (%) 95 | 100 95 . Level 1 4 | . 4 . Level 2 . | . . . Level 3 . | . . . Level 4 . | . . . Level 5 . | . . . High Security . | . . . Max Security . | . . . Squads Dispatched 5 | . 5 . Investigation 2 | . 2 . Extermination . | . . . Reinforcement 3 | . 3 . Assault . | . . . Garrison . | . . . Intercept . | . . . Searches Triggered . | . . . Construction Impeded . | . . . Haulers Reinforced . | . . . Active Scanning Responses . | . . . Cargo Convoy Interrupts . | . . . Stealth | -11 -10 -10 --------- Run | Yrd Mat Sub Distress Signals 2 | . 2 . Communications Jammed . | . . . Distress Signals . | . . . Times Spotted 32 | . 26 6 Peak Tracking Total 4 | . 4 4 Tactical Retreats . | . . . Traps | -11 -10 -10 ------- Run | Yrd Mat Sub Traps Triggered 1 | . 1 . Indirectly . | . . . Trap Hack Attempts . | . . . Triggered . | . . . Disarmed . | . . . Reprogrammed . | . . . Reused . | . . . Traps Extracted . | . . . Installed . | . . . Triggered . | . . . Machines | -11 -10 -10 ---------- Run | Yrd Mat Sub Machines Disabled 1 | . 1 . Max in Single Turn 1 | . 1 . Machines Repaired . | . . . Machines Dismantled . | . . . Machines Sabotaged . | . . . Overloaded Fab Kills . | . . . Hacking | -11 -10 -10 --------- Run | Yrd Mat Sub Machines Accessed 5 | . 5 . Terminals 5 | . 5 . Fabricators . | . . . Repair Stations . | . . . Recycling Units . | . . . Scanalyzers . | . . . Garrison Access . | . . . Total Hacks 13 | . 13 . Successful 4 | . 4 . Failed 9 | . 9 . Catastrophic 2 | . 2 . Database Lockouts . | . . . Manual . | . . . Terminals 13 | . 13 . Fabricators . | . . . Repair Stations . | . . . Recycling Units . | . . . Scanalyzers . | . . . Garrison Access . | . . . Terminal Hacks 4 | . 4 . Prototype ID Bank 1 | . 1 . Emergency Access Points 1 | . 1 . Alert Level 1 | . 1 . Dispatch Records 1 | . 1 . Fabricator Hacks . | . . . Repair Station Hacks . | . . . Recycling Unit Hacks . | . . . Scanalyzer . | . . . Garrison Access Hacks . | . . . Unauthorized Hacks . | . . . Terminals . | . . . Fabricators . | . . . Repair Stations . | . . . Recycling Units . | . . . Scanalyzers . | . . . Garrison Access . | . . . Data Cores Recovered . | . . . Used . | . . . Hacking Detections 4 | . 4 . Full Trace Events 1 | . 1 . Feedback Events . | . . . Feedback Blocked . | . . . Robot Schematics Acquired . | . . . Robots Built . | . . . Authchips . | . . . Time . | . . . Total Robot Build Rating . | . . . Part Schematics Acquired . | . . . Parts Built . | . . . Authchips . | . . . Time . | . . . Total Part Build Rating . | . . . Parts Repaired . | . . . Time . | . . . Parts Recycled . | . . . Recycled Matter . | . . . Retrieved Matter . | . . . Retrieved Components . | . . . Parts Scanalyzed . | . . . Part Schematics Acquired . | . . . Parts Damaged . | . . . Bothacking | -11 -10 -10 ------------ Run | Yrd Mat Sub Used RIF Installer . | . . . Robots Hacked . | . . . Non-combat . | . . . Combat . | . . . Robot Hacks Applied . | . . . Relay Couplers Released . | . . . Fabnet Peak Effective % . | . . . Robots Rewired . | . . . Allies Hacked . | . . . Hacks Repelled . | . . . Allies | -11 -10 -10 -------- Run | Yrd Mat Sub Total Allies . | . . . Largest Group . | . . . Highest-Rated Group . | . . . Highest-Rated Ally . | . . . Total Orders . | . . . Ally Attacks . | . . . Total Damage . | . . . Kills . | . . . Allies Corrupted . | . . . Allies Melted . | . . . Intel | -11 -10 -10 ------- Run | Yrd Mat Sub Robot Analysis Total . | . . . Derelict Logs Recovered 1 | . . 1 Drone Launches . | . . . Drone Recoveries . | . . . Exploration | -11 -10 -10 ------------- Run | Yrd Mat Sub Turns Passed 1765 | 112 1397 256 Spaces Moved 940 | 83 711 146 Core 11 | 11 . . Treads 670 | . 535 135 Legs 259 | 72 176 11 Wheels . | . . . Hover . | . . . Flight . | . . . Fastest Speed 50 | 50 120 160 Average Speed 159 | 110 163 165 Slowest Speed 260 | 120 190 260 Overloaded Moves . | . . . Propulsion Burnouts . | . . . Robots Hopped . | . . . Cave-ins Triggered . | . . . Exploration Rate (%) 36 | 5 97 7 Regions Visited 2 Branch Regions 1 Pre-discovered Areas . | . . . Known Exits Taken . | . . . Unknown Exits Taken 2 | 1 1 . Scrap Searched . | . . . Spaces Dug . | . . . Terrain Destroyed 65 | . 44 21 Melee . | . . . Projectile . | . . . AOE 65 | . 44 21 Terrain Rammed . | . . . Walls Destroyed . | . . . Machines Disabled . | . . . Actions | -11 -10 -10 --------- Run | Yrd Mat Sub Total 1088 | 102 833 153 Wait 27 | 3 24 . Move 938 | 82 710 146 Hop . | . . . Pick Up 23 | 11 12 . Fast Attach 1 | 1 . . Attach 14 | 5 8 1 Detach . | . . . Swap 12 | . 10 2 Drop 6 | . 6 . Fire 67 | . 63 4 Melee . | . . . Ram . | . . . Kick . | . . . Crush . | . . . Escape Stasis . | . . . Rewire . | . . . Trap . | . . . Miscellaneous . | . . . Route ------- -11/Scrapyard -10/Materials (discovered 5 exits: [*Mat x3] / [*Min] / [*Sub]) -10/Subcaves History --------- Turn | Location | Event 2 | -11/Scrapyard | Met Revision 17 8 | -11/Scrapyard | Discovered new exit (range 15) 113 | -11/Scrapyard | Entered Materials 317 | -10/Materials | Build established: Mutant 579 | -10/Materials | Lost 3 parts (2n1w) 641 | -10/Materials | Discovered new exit (range 8) 718 | -10/Materials | Discovered new exit (range 14) 954 | -10/Materials | Core integrity fell below 50% 972 | -10/Materials | Discovered new exit (range 15) 1348 | -10/Materials | Discovered new exit (range 16) 1502 | -10/Materials | Discovered new exit (range 6) 1510 | -10/Materials | Entered Subcaves 1523 | -10/Subcaves | Learned Materials emergency access door positions 1740 | -10/Subcaves | A Subdweller sparked back to life 1740 | -10/Subcaves | A Subdweller sparked back to life 1740 | -10/Subcaves | A Subdweller sparked back to life 1745 | -10/Subcaves | Core integrity fell below 20% 1766 | -10/Subcaves | Destroyed by SO-8YT(R) with Subdweller Machine Gun Last Messages --------------- Acquired derelict log, extracted data. Data stored: Materials emergency access points. SO-8YT(R) emerges from concealment. Lgt. Treads destroyed. Disposable Heat Sink melted. GP-N5F(R) destroyed. Subatomizers dissect the Sub. Monowheel. 2X-PW8(R) destroyed. J5-YQQ(R) creaks and sparks as it begins to move. F1-Q7W(R) creaks and sparks as it begins to move. 1R-IZM(R) creaks and sparks as it begins to move. The unstable cave ceiling collapses. Grenade Launcher destroyed. Subatomizers dissect the Sub. Monowheel, destroying it. Aluminum Leg destroyed. Lgt. Ion Engine destroyed. Map ----- +----------------------------------------------------+ | ?????????????????????????????????????????????????? | | ???????????????????#?????????????????????????????? | | ??????????????????? ????????##???????????????????? | | ?????????????????? ??????? #???????????????????? | | ?????????????????? ?????? #???????????????????? | | ??????????????????? ????? #???????????????????? | | ??????????????????? ??##? #????????????????????? | | ??????????????????? ## ## #??? ????????????????? | | ??????????????????? ## ????????????????? | | ??????????????????? ???????????????? | | ???????????????????# ?????????????????? | | ????????????######## ????????????????????? | | ????????????# ## # # #????????????????????????? | | ????????????## #????????????????????????? | | ????????????## #????????????????????????? | | ???????????## # ###??????????????????????? | | ???????????# #### ## #??????????????? | | ??????????## #??# #??????????????? | | ??????????# #?## ##### #??????????????? | | #######???# # ##?# ##?? ??????????????? | | #???## ##??## #???? ???????????????? | | ###### #????## # ##?????#?????????????????? | | # #?????## ###?????????????????????? | | ####???# # ##????????????????????? | | ## ##??## #????????????????????? | | # ## ### ## ###?###@ ##???????????????????? | | #### #?#### ##### #???????????????????? | | ???## ##??# " # # #???????????????????? | | ????####???# & #???????????????????? | | ???????????# [ R ##???????????????????? | | ???????????# " # * #????????????????????? | | ???????????# " =%! #???###??????????????? | | ???????????##"# # ###? ##?????????????? | | ?????????????## ## " ## #?????????????? | | ?????????????# ### " #??????????????? | | ?????????????# #?######## ##??????????????? | | ?????????????## #????????#### #???????????????? | | ??????????????####???????????## #???????????????? | | ??????????????????????????????# ????????????? | | ?????????????????????????????? ????????? | | ?????????????????????????????? ## ###???????? | | ?????????????????????????????# #?? ##?????????? | | ?????????????????????????????# ##??? #?????????? | | ?????????????????????????????## #?????#?????????? | | ?????????????????????????????? ???????????????? | | ??????????????????????????????" ???????????????? | | ??????????????????????????????" #???????????????? | | ??????????????????????????????" #???????????????? | | ??????????????????????????????? #???????????????? | | ??????????????????????????????? ##???????????????? | +----------------------------------------------------+ Best States ------------- Heat Dissipation 25 Energy Generation 10 Energy Capacity 125 Matter Stores 300 Matter Capacity 300 Sight Range 16 Terrain Scan Density 10 Power Shielding 33 Evasion (%) 55 Recoil Reduction 2 Item Schematics ----------------- None Robot Schematics ------------------ None Fabricated ------------ Nothing Alien Tech Used ----------------- None Achievements -------------- None Challenges ------------ None Game ------ Seed BiometalWeldingTorch Manual? 0 Play Time 00:16:31 Cumulative 3.9 hours Start 2025.01.04 @ 19:48:26 End 2025.01.04 @ 20:03:15 Sessions 1 Manual Loads 0 Difficulty Rogue Special Mode None Game No. 6 Rogue 6 Adventurer 0 Explorer 0 Win Type - Total 0 Types 0/0/0/0/0/0/0/0/0 Lore% 6 Gallery% 7 Achievement% 8 Wizard Run 0 Options --------- Layout 1 ASCII 0 Keyboard 0 Movement Mouse Keybinds 0 Fullscreen 1 Font 32/SmallcapsGlow Map View 50x35 Zoom Use 0% Tactical HUD 0 Map Filters NONE Filters NONE Steam 1 RUN: 5db33961-b4b4-4125-b17a-950f7a2bbbad